Cogmind - Beta 17 @@@ ROGUE MODE // 2026.07.05 @ 22:52:22 Player: Scarlet Result: Destroyed by FR-JHH(R) with Subdweller Machine Gun Performance ------------- Evolutions (0) 0 Regions Visited (3) 600 Robots Destroyed (19) 95 Value Destroyed (459) 459 Prototype IDs (0) 0 Alien Tech Used (0) 0 Bonus (0) 0 TOTAL SCORE: 1154 Bonus ------- None Cogmind --------- Core Integrity 0/250 Matter 206/300 Energy 89/100 System Corruption 5% Temperature Cool (0) Movement Core (150) Ox2 Location -10/Subcaves Parts ------- > --- POWER (1) -------- (None) > --- PROPULSION (2) --- (None) > --- UTILITY (2) ------ Small Storage Unit Visual Processing Unit > --- WEAPON (2) ------- Makeshift Spear > --- INVENTORY (8) ---- Flight Unit Improved Heat Sink Compact Matter Pod (150) Shield Generator Particle Gun Beam Cannon Mining Laser Peak State ------------ > --- POWER ------------ Light Nuclear Core > --- PROPULSION ------- Aluminum Leg Aluminum Leg > --- UTILITY ---------- Small Storage Unit Visual Processing Unit > --- WEAPON ----------- Light Assault Rifle Makeshift Spear > --- INVENTORY -------- Improved Heat Sink Shield Generator Particle Gun Beam Cannon Light Assault Rifle Grenade Launcher Mining Laser Mining Laser [Rating: 14] Favorites ----------- Power Ion Engine Engine Ion Engine Power Core Light Nuclear Core Propulsion Aluminum Leg Leg Aluminum Leg Utility Small Storage Unit Storage Small Storage Unit Processor Visual Processing Unit Weapon Light Assault Rifle Ballistic Gun Light Assault Rifle Launcher Grenade Launcher Special Weapon Mining Laser Piercing Weapon Makeshift Spear Build | -11 -10 -10 -10 ------- Run | Yrd Mat Min Sub Slots Evolved . | . . . . Power . | . . . . Propulsion . | . . . . Utility . | . . . . Weapon . | . . . . Parts Attached 20 | 6 5 6 3 Power 3 | 1 . 1 1 Engine 2 | 1 . . 1 Core 1 | . . 1 . Reactor . | . . . . Propulsion 5 | 2 1 2 . Treads . | . . . . Leg 5 | 2 1 2 . Wheel . | . . . . Hover . | . . . . Flight . | . . . . Utility 3 | 1 1 1 . Device . | . . . . Storage 2 | 1 . 1 . Processor 1 | . 1 . . Hackware . | . . . . Protection . | . . . . Artifact . | . . . . Weapon 9 | 2 3 2 2 Energy Gun . | . . . . Energy Cannon . | . . . . Ballistic Gun 4 | 2 2 . . Ballistic Cannon . | . . . . Launcher 1 | . . 1 . Special Weapon 3 | . 1 . 2 Impact Weapon . | . . . . Slashing Weapon . | . . . . Piercing Weapon 1 | . . 1 . Special Melee Weapon . | . . . . Unidentified Prototypes . | . . . . Parts Lost 6 | . . 1 5 Power 1 | . . 1 . Propulsion 2 | . . . 2 Utility . | . . . . Weapon 3 | . . . 3 Highest Loss Streak 2 | . . 1 2 To Critical Strikes . | . . . . Average Backups 6 | . 3 7 7 Power . | . . . . Propulsion . | . . . . Utility 1 | . . 2 3 Weapon 3 | . 2 5 4 Tool/Special . | . . . . Unused Backups 6 | . . . 6 Power . | . . . . Propulsion 1 | . . . 1 Utility 3 | . . . 3 Weapon 2 | . . . 2 Tool/Special . | . . . . Average Slot Usage (%) 94 | . 94 94 93 Engine 8 | . 14 1 11 Core 2 | . . 8 . Leg 27 | . 28 28 26 Storage 14 | . 14 14 14 Processor 12 | . 8 14 14 Ballistic Gun 11 | . 27 3 1 Launcher 3 | . . 11 . Special Weapon 6 | . . 1 19 Piercing Weapon 5 | . . 12 5 Peak Build Rating 14 | 6 8 14 14 Average Rating 10 | 4 7 12 11 On Entrance 6 | . 6 8 11 Avg Prop Armor Cover (%) . | . . . . Naked Turns . | . . . . Heaviest Build 15 | 13 13 15 15 Greatest Support 20 | 20 20 20 20 Greatest Overweight (x) 3 | . . . 3 Average Overweight (x) . | . . . . Largest Inventory Capacity 8 | 8 8 8 8 Average Capacity 7 | 6 8 8 8 Most Carried 8 | . 7 8 8 Average Carried 6 | . 3 7 7 Final Capacity 8 | 8 8 8 8 Final Carried 8 | . 7 8 7 Class Distribution -------------------- 100% | Mutant Dominant Class ---------------- Mutant | -10/Materials Mutant | -10/Mines Mutant | -10/Subcaves Resources | -11 -10 -10 -10 ----------- Run | Yrd Mat Min Sub Matter Collected 612 | 240 151 143 78 Remotely . | . . . . Salvage Created 504 | . 194 269 41 Parts 35 | . 12 18 5 Haulers Intercepted . | . . . . Recyclers Shooed 1 | . 1 . . Parts Field Recycled . | . . . . Retrieved Matter . | . . . . Parts Self-Destructed 8 | . . . 8 Prevented 1 | . . . 1 Parts Restored . | . . . . Kills | -11 -10 -10 -10 ------- Run | Yrd Mat Min Sub Combat Hostiles Destroyed 14 | . 7 4 3 Melee 5 | . . 2 3 Guns 9 | . 7 2 . Classes Destroyed 6 | . 2 3 1 Builder 1 | . . 1 . Tunneler 1 | . . 1 . Recycler 1 | . . 1 . Turret 2 | . . . 2 Swarmer 6 | . 3 . 3 Grunt 8 | . 4 4 . Best Kill Streak 3 | . 3 2 2 Combat Bots Only 3 | . 3 2 2 Max Kills in Single Turn 1 | . 1 1 1 Gunslinging . | . . . . Exploded . | . . . . Melee 1 | . . 1 1 Uniques/NPCs Destroyed . | . . . . Combat | -11 -10 -10 -10 -------- Run | Yrd Mat Min Sub Hostile Shots Fired 168 | . 43 31 94 Missed 69 | . 15 12 42 Hits 99 | . 28 19 52 Projectile 99 | . 28 19 52 Critical Strikes 1 | . . . 1 Damage Taken 1005 | . 301 260 444 Core 263 | . 62 43 158 Absorbed by Shields . | . . . . Core Remaining (%) 100 | 100 . . . Volleys Fired 66 | . 30 13 23 Largest 2 | . 2 2 1 Hottest 100 | . 100 100 100 Shots Fired 103 | . 58 23 22 Gun 77 | . 57 20 . Cannon . | . . . . Launcher 10 | . . . 10 Special 16 | . 1 3 12 Kinetic 77 | . 57 20 . Thermal 16 | . 1 3 12 Explosive 10 | . . . 10 Electromagnetic . | . . . . Robot Hit Streak 7 | . 7 6 4 Robot Miss Streak 2 | . 2 1 1 Penetration Max . | . . . . Secondary Targets . | . . . . Shots Hit Robots 71 | . 36 24 11 Core Hits 42 | . 17 10 15 Critical Kills . | . . . . Critical Parts Destroyed 1 | . 1 . . Critical Strikes 3 | . 1 . 2 Destroy 1 | . 1 . . Impale 2 | . . . 2 Melee Attacks 28 | . . 15 13 Impact . | . . . . Slashing . | . . . . Piercing 28 | . . 15 13 Sneak Attacks 5 | . . 5 . Combat Hostiles . | . . . . Follow-up Attacks . | . . . . Damage Inflicted 1169 | . 295 544 330 Guns 386 | . 279 107 . Cannons . | . . . . Explosions 199 | . . . 199 Melee 557 | . . 437 120 Ramming 16 | . 16 . . Kinetic 386 | . 279 107 . Thermal 11 | . . . 11 Explosive 199 | . . . 199 Electromagnetic . | . . . . Impact . | . . . . Slashing . | . . . . Piercing 557 | . . 437 120 Highest Corruption 5 | . 5 5 5 Average Corruption 4 | . 4 5 5 Corruption Purged . | . . . . Corruption Blocked . | . . . . Effects 38 | . 13 13 12 Message Errors 6 | . 1 3 2 Matter Fused 10 | . 4 4 2 Heat Flow Errors 7 | . 3 1 3 Energy Discharges 4 | . 3 1 . Parts Fused 1 | . . . 1 Data Loss (minor) 7 | . 1 4 2 Data Loss (major) 1 | . . . 1 Weapon Failures 2 | . 1 . 1 Overload Shots . | . . . . Overflow Damage 68 | . . 62 6 Projectiles . | . . . . Explosions . | . . . . Melee 68 | . . 62 6 Knockbacks . | . . . . Impact . | . . . . Kinetic . | . . . . Secondary . | . . . . Self-Inflicted Damage 31 | . . . 31 Shots 1 | . . . 1 Rammed . | . . . . Targets Rammed 4 | . 4 . . Kicked 4 | . 4 . . Crushed . | . . . . Highest Temperature 195 | . 195 194 154 Average Temperature 49 | . 46 45 77 Received Heat Transfer 450 | . 144 144 162 Siege Activations . | . . . . Martial Activations . | . . . . Shielding Activations . | . . . . Robots Disrupted . | . . . . Combat Hostiles . | . . . . Robots Corrupted . | . . . . Combat Hostiles . | . . . . Parts Fried . | . . . . Impact Corruptions . | . . . . Robots Melted . | . . . . Combat Hostiles . | . . . . Parts Melted . | . . . . Heat Transferred 80 | . . . 80 Parts Sabotaged . | . . . . Parts Stolen . | . . . . Parts Stripped . | . . . . Power Chain Reactions . | . . . . Alert | -11 -10 -10 -10 ------- Run | Yrd Mat Min Sub Maximum Alert Level . | . . . . Low Security (%) 100 | 100 100 100 . Level 1 . | . . . . Level 2 . | . . . . Level 3 . | . . . . Level 4 . | . . . . Level 5 . | . . . . High Security . | . . . . Max Security . | . . . . Peak Influence 116 | . 116 63 . Initial 23 | . . 23 . Average 24 | . 35 13 . Influence Increases 532 | . 210 132 190 Destroy 0b10 Robot/C 320 | . 140 80 100 Destroy 0b10 Robot/NC 15 | . . 15 . Destroy Leader 60 | . 40 20 . Disable Machine 15 | . 15 . . Destroy Structure 2 | . . 2 . Lose Combat Pursuer 120 | . 15 15 90 Influence Decreases 532 | . 150 192 190 Entered New Map 37 | . . 37 . Time Decay 461 | . 150 155 156 Lost Part 34 | . . . 34 Squads Dispatched 2 | . 2 . . Investigation 1 | . 1 . . Extermination . | . . . . Reinforcement 1 | . 1 . . Assault . | . . . . Garrison . | . . . . Intercept . | . . . . Searches Triggered . | . . . . Construction Impeded . | . . . . Haulers Reinforced . | . . . . Active Scanning Responses . | . . . . Cargo Convoy Interrupts . | . . . . Stealth | -11 -10 -10 -10 --------- Run | Yrd Mat Min Sub Distress Signals 2 | . 2 . . Communications Jammed . | . . . . Distress Signals . | . . . . Times Spotted 33 | . 12 6 15 Peak Tracking Total 6 | . 3 2 6 Tactical Retreats 5 | . 1 1 3 Traps | -11 -10 -10 -10 ------- Run | Yrd Mat Min Sub Traps Triggered 4 | . 4 . . Indirectly . | . . . . Trap Hack Attempts . | . . . . Triggered . | . . . . Disarmed . | . . . . Reprogrammed . | . . . . Reused . | . . . . Traps Extracted . | . . . . Installed . | . . . . Triggered . | . . . . Machines | -11 -10 -10 -10 ---------- Run | Yrd Mat Min Sub Machines Disabled 4 | . 1 1 2 Max in Single Turn 2 | . 1 1 2 Machines Repaired . | . . . . Machines Dismantled . | . . . . Machines Sabotaged . | . . . . Overloaded Fab Kills . | . . . . Hacking | -11 -10 -10 -10 --------- Run | Yrd Mat Min Sub Machines Accessed 2 | . 1 . 1 Terminals 1 | . 1 . . Fabricators . | . . . . Repair Stations . | . . . . Recycling Units . | . . . . Scanalyzers . | . . . . Garrison Access . | . . . . Total Hacks 6 | . 3 . 3 Successful 4 | . 1 . 3 Failed 2 | . 2 . . Catastrophic 2 | . 2 . . Database Lockouts . | . . . . Manual 8 | . 2 . 6 Terminals 3 | . 3 . . Fabricators . | . . . . Repair Stations . | . . . . Recycling Units . | . . . . Scanalyzers . | . . . . Garrison Access . | . . . . Terminal Hacks 4 | . 1 . 3 Record 3 | . . . 3 Locate Traps 1 | . 1 . . Fabricator Hacks . | . . . . Repair Station Hacks . | . . . . Recycling Unit Hacks . | . . . . Scanalyzer . | . . . . Garrison Access Hacks . | . . . . Unauthorized Hacks . | . . . . Terminals . | . . . . Fabricators . | . . . . Repair Stations . | . . . . Recycling Units . | . . . . Scanalyzers . | . . . . Garrison Access . | . . . . Data Cores Recovered . | . . . . Used . | . . . . Hacking Detections 1 | . 1 . . Full Trace Events . | . . . . Feedback Events . | . . . . Feedback Blocked . | . . . . Robot Schematics Acquired . | . . . . Robots Built . | . . . . Authchips . | . . . . Time . | . . . . Total Robot Build Rating . | . . . . Part Schematics Acquired . | . . . . Parts Built . | . . . . Authchips . | . . . . Time . | . . . . Total Part Build Rating . | . . . . Part Studies Acquired . | . . . . Parts Repaired . | . . . . Time . | . . . . Parts Recycled . | . . . . Recycled Matter . | . . . . Retrieved Matter . | . . . . Retrieved Components . | . . . . Parts Scanalyzed . | . . . . Part Schematics Acquired . | . . . . Parts Damaged . | . . . . Bothacking | -11 -10 -10 -10 ------------ Run | Yrd Mat Min Sub Used RIF Installer . | . . . . Robots Hacked . | . . . . Non-combat . | . . . . Combat . | . . . . Robot Hacks Applied . | . . . . Relay Couplers Released . | . . . . Fabnet Peak Effective % . | . . . . Robots Rewired . | . . . . Allies Hacked . | . . . . Hacks Repelled . | . . . . Allies | -11 -10 -10 -10 -------- Run | Yrd Mat Min Sub Total Allies . | . . . . Largest Group . | . . . . Highest-Rated Group . | . . . . Highest-Rated Ally . | . . . . Total Orders . | . . . . Ally Attacks . | . . . . Total Damage . | . . . . Kills . | . . . . Allies Corrupted . | . . . . Allies Melted . | . . . . Intel | -11 -10 -10 -10 ------- Run | Yrd Mat Min Sub Active Infowar (turns) 1456 | . 369 531 556 Optics 1456 | . 369 531 556 Robot Analysis Total . | . . . . Derelict Logs Recovered 1 | . . 1 . Drone Launches . | . . . . Drone Recoveries . | . . . . Exploration | -11 -10 -10 -10 ------------- Run | Yrd Mat Min Sub Turns Passed 1716 | 39 590 531 556 Spaces Moved 1035 | 27 303 355 350 Core 8 | 3 . . 5 Treads . | . . . . Legs 1027 | 24 303 355 345 Wheels . | . . . . Hover . | . . . . Flight . | . . . . Fastest Speed 50 | 50 120 120 120 Average Speed 121 | 112 120 120 124 Slowest Speed 200 | 120 120 120 200 Overloaded Moves . | . . . . Propulsion Burnouts . | . . . . Robots Hopped . | . . . . Potential Cave-ins . | . . . . Cave-ins Triggered . | . . . . Exploration Rate (%) 35 | 3 42 79 17 Regions Visited 3 Branch Regions 2 Pre-discovered Areas . | . . . . Known Exits Taken . | . . . . Unknown Exits Taken 3 | 1 1 1 . Scrap Searched . | . . . . Spaces Dug 3 | . . 3 . Terrain Destroyed 30 | . . 3 27 Melee . | . . . . Projectile 3 | . . 3 . AOE 27 | . . . 27 Terrain Rammed . | . . . . Walls Destroyed . | . . . . Machines Disabled . | . . . . Actions | -11 -10 -10 -10 --------- Run | Yrd Mat Min Sub Total 1336 | 32 475 421 408 Wait 156 | . 127 20 9 Move 1032 | 26 302 354 350 Hop . | . . . . Pick Up 10 | . 5 4 1 Fast Attach 11 | 6 1 . 4 Attach 2 | . . . 2 Detach . | . . . . Swap 15 | . 5 8 2 Drop 12 | . 1 7 4 Fire 66 | . 30 13 23 Melee 28 | . . 15 13 Ram . | . . . . Kick 4 | . 4 . . Crush . | . . . . Escape Stasis . | . . . . Rewire . | . . . . Trap . | . . . . Miscellaneous . | . . . . Route ------- -11/Scrapyard -10/Materials -10/Mines (discovered 2 exits: [*Mat] / *Sub) -10/Subcaves (discovered 2 exits: [*Mat] / [*Rec]) History --------- Turn | Location | Event 14 | -11/Scrapyard | Discovered new exit (range 16) 40 | -11/Scrapyard | Entered Materials 279 | -10/Materials | Discovered new exit (range 16) 301 | -10/Materials | Build established: Mutant 630 | -10/Materials | Entered Mines 636 | -10/Mines | Met a Derelict bent on vengeance 682 | -10/Mines | A weapon hastily lodged in a ceiling crevice suddenly fell to the ground 816 | -10/Mines | Learned Materials emergency access door positions 831 | -10/Mines | Discovered new exit (range 8) 1078 | -10/Mines | Discovered new exit (range 10) 1089 | -10/Mines | Joined a pair of Derelicts in attacking an 0b10 outpost 1161 | -10/Mines | Entered Subcaves 1162 | -10/Subcaves | Approached by a straggling Scientist 1182 | -10/Subcaves | A swath of the cavern ceiling suddenly collapsed 1210 | -10/Subcaves | Visited Clippyterm 1214 | -10/Subcaves | Learned Factory fabricator intel 1246 | -10/Subcaves | Shifting Twisted Machinery released Sub. Power Source 1260 | -10/Subcaves | Shifting Twisted Machinery released Mak. System Restoration Module 1263 | -10/Subcaves | Discovered new exit (range 12) 1294 | -10/Subcaves | Core integrity fell below 50% 1377 | -10/Subcaves | Discovered new exit (range 13) 1669 | -10/Subcaves | Core integrity fell below 20% 1674 | -10/Subcaves | Ambushed by Subdweller buried in earth 1717 | -10/Subcaves | Destroyed by FR-JHH(R) with Subdweller Machine Gun Last Messages --------------- 01442_ Acquired 7 matter. 01444_ Acquired 13 matter. 01444_ CA-VPV(u) builds Twisted Machinery. 01463_ SMQH 01662_ Autobeam Turret destroyed. 01667_ The unstable cave ceiling collapses. 01673_ Aluminum Leg destroyed. 01674_ Autobeam Turret destroyed. 01674_ Grenade Launcher destroyed. 01675_ FR-JHH(R): "FREEEEDUMB!" 01695_ System corrupted: Broken Sub. Power Source fused. 01707_ Discarded Broken Sub. Power Source. 01709_ Aluminum Leg destroyed. 01713_ Flamer destroyed. Map ----- +----------------------------------------------------+ | ????????????#######??????????????????????????????? | | ????????????#"""""#??????????????????????????????? | | ????????????#""X""#??????????????????????????????? | | ????????????#" "#??????????????????????????????? | | ????????????### #####?????????????????????????#### | | ?????????????## ## ##########?##########?????# | | ????###?????## ## # ### ###%###?????# | | ??" " # "" ""##????## | | ??"& " "## ##????#% | | ?? " & # #### ######???# | | ?? " ## ### ##??### % ???# | | ?? ""???### ##?# ##???# #??# | | ??????????## ### #??# #???# #??# | | ???????????## #??####?## ##??? #??### | | ????????????##???????## #??? % #????# | | ?????????????????????# ##?? ! ##????#### | | ?????????????????????# ##??# ## ###????###?? | | ?????????????????????# #???# ?##"?????## ##? | | ????????????????????## ###?#####"?###### ## | | ??????????????????### ####""#"## # | | ??????????????????# ##"#"## | | ??????????????????# #" "" ! | | ????????????####??# # ## # # | | ????????????# #### ##### ####### | | ????????????# ##R ##???## & #?????##### | | ????????????#"" ##@ ##?????##! &#?????????? | | ????????????# "" " #### ##??????## ##?????????? | | ????####????# "" "########???????# [##?????????? | | ????# " ??##### ""#?# ##????????# #?????????? | | ?## # ##### "#### ##??###### ##?????????? | | ?# """ #### #?????????? | | ?# " " "" ##?????????? | | ?# < ! # #?????????? | | # " ""## ## ## ### # #?????????? | | ?# ##### #######?#####?????????? | | ?## ######?### #????????????????????? | | ??## "??????## ###????????????????????? | | ???#######?????### ##??????????????????????? | | ???????????????# ##???????????????????????? | | ??????????????# #????????????????????????? | | ??????????????# ## #???????????????????????? | | ??????????????# ### #??????????????????????? | | ??????????????## #?# ????????????????????? | | ???????????????######? ??????????????????? | | ?????????????????????? ????????????????? | | ??????????????????????##### ???????????????? | | ??????????????????????????? ???????????????? | | ???????????????????????????? # ????????????????? | | ???????????????????????????? ? ????????????????? | | ????????????????????????????? ##?????????????????? | +----------------------------------------------------+ Best States ------------- Heat Dissipation 25 Energy Generation 15 Energy Capacity 250 Matter Stores 300 Matter Capacity 300 Sight Range 18 Terrain Scan Density 10 Evasion (%) 55 Item Schematics ----------------- None Robot Schematics ------------------ None Fabricated ------------ Nothing Repaired ---------- Nothing Studied --------- None Alien Tech Used ----------------- None Achievements -------------- None Challenges ------------ None Game ------ Seed PlatingVariableLance Manual? 0 Play Time 00:21:30 Cumulative 15.6 hours Start 2026.07.05 @ 22:30:39 End 2026.07.05 @ 22:52:22 Sessions 1 Manual Loads 0 Difficulty Rogue Special Mode None Game No. 21 Rogue 21 Adventurer 0 Explorer 0 Win Type - Total 0 Types 0/0/0/0/0/0/0/0/0/0 Lore% 7 Gallery% 16 Achievement% 15 Wizard Run 0 Options --------- Layout 0 ASCII 0 Keyboard 1 Movement Numpad Keybinds 0 Fullscreen 1 Font 18/SmallcapsGlow Map View 76x50 Zoom Use 0% Tactical HUD 1 Map Filters NONE Filters NONE Steam 1 RUN: d3d427b1-8477-4b33-9817-90b4d6cff943